fUSD/lending_fUSD_20240808
["ID","MTS","AMOUNT","RATE_DAILY","PERIOD"]
[334470488,1723138231623,-150.0,0.00013332,2]
[334470489,1723138231633,-574.96775099,0.00013333,2]
[334470490,1723138231642,-2194.91464824,0.00013333,2]
[334470491,1723138231731,-3149.58171538,0.00013333,2]
[334470492,1723138231800,-6075.0,0.00013333,2]
[334470493,1723138231812,-700.0,0.00013333,2]
[334470494,1723138231824,-484.55762474,0.00013333,2]
[334470514,1723138237654,-454.44560166,0.00013333,2]
[334470515,1723138237665,-12785.60426822,0.00013333,2]
[334470516,1723138237676,-3907.29000001,0.00013333,2]
[334470517,1723138237722,-1200.0,0.00013333,2]
[334470518,1723138237734,-54535.616081,0.00013333,2]
[334470519,1723138237843,-758.11221771,0.00013333,2]
[334470520,1723138237855,-2765.0005402,0.00013333,2]
[334470521,1723138237911,-987.45743925,0.00013333,2]
[334470522,1723138237923,-376.259104,0.00013333,2]
[334470523,1723138237935,-395.52138118,0.00013333,2]
[334470524,1723138238029,-1388.09553447,0.00013333,2]
[334470525,1723138238040,-265.615,0.00013333,2]
[334470526,1723138238099,-438.54087792,0.00013333,2]
[334470527,1723138238110,-644.68559983,0.00013333,2]
[334470528,1723138238121,-1016.61,0.00013333,2]
[334470529,1723138238131,-2420.96,0.00013333,2]
[334470530,1723138238142,-11504.3783414,0.00013333,2]
[334470531,1723138238153,-2005.13127959,0.00013333,2]
[334470916,1723138241754,-276.41034173,0.00013333,2]
[334470929,1723138241872,-4631.27995524,0.00013333,2]
[334470931,1723138241883,-1196.62710644,0.00013333,2]
[334470933,1723138241894,-2495.7200772,0.00013333,2]
[334471049,1723138243040,-15034.27380017,0.00013333,2]
[334471051,1723138243056,-57039.48700055,0.00013333,2]
[334471366,1723138247536,-317.68491105,0.00013333,2]
[334471367,1723138247549,-1303.0,0.00013333,2]
[334471368,1723138247670,-579.79786062,0.00013333,2]
[334471369,1723138247682,-13579.54805872,0.00013333,2]
[334471370,1723138247735,-1038.76104328,0.00013333,2]
[334471384,1723138386702,209.95,0.00026695,120]
[334471430,1723139431833,-535.15075322,0.00011959,2]
[334471431,1723139431844,-356.88107954,0.00011959,2]
[334471432,1723139432038,-512.72295525,0.00011959,2]
[334471433,1723139432051,-196.56350179,0.00012565,2]
[334471434,1723139432062,-628.3730026,0.00012613,2]
[334471435,1723139432074,-347.57284792,0.00012665,2]
[334471436,1723139432086,-547.04761577,0.00012665,2]
[334471437,1723139432097,-344.93391264,0.00012666,2]
[334471438,1723139432111,-304.32041605,0.00012666,2]
[334471439,1723139432122,-134.65940742,0.00012666,2]
[334471451,1723139438318,-465.84631357,0.00012666,2]
[334471452,1723139438331,-193.8411925,0.00012666,2]
[334471453,1723139438343,-889.2172062,0.00012666,2]
[334471455,1723139438355,-309.19058688,0.00012681,2]
[334471456,1723139438367,-170.3193188,0.0001269,2]
[334471457,1723139438377,-409.09895621,0.00012897,2]
[334471459,1723139438388,-1442.08642588,0.00013232,2]
[334471625,1723139439907,-2000.0,0.00013232,2]
[334471736,1723139440994,-2670.51946968,0.00013232,2]
[334473133,1723140228049,167.96,0.00025431,120]
[334473157,1723140632066,-1952.7453,0.00012566,2]
[334473158,1723140632076,-1860.7009197,0.00013222,2]
[334473159,1723140632086,-2740.70883,0.00013232,2]
[334473160,1723140632096,-522.83039782,0.00013398,2]
[334473161,1723140632106,-171.38543183,0.00013489,2]
[334473162,1723140632115,-300.0,0.00013972,2]
[334473163,1723140632128,-162.7,0.00013973,2]
[334473164,1723140632138,-182.14,0.00013973,2]
[334473165,1723140632148,-238.89,0.00013973,2]
[334473166,1723140632157,-179.17,0.00013973,2]
[334473167,1723140632167,-1721.44954282,0.00014283,2]
[334473168,1723140632176,-150.99,0.00014507,2]
[334473169,1723140632186,-730.08585614,0.00014519,2]
[334473170,1723140632195,-499.99,0.00014579,2]
[334473171,1723140632205,-92.93308488,0.00014667,2]
[334473172,1723140632217,-855.38768926,0.00014667,2]
[334473173,1723140632226,-282.00613467,0.00014789,2]
[334473174,1723140632237,-635.97483763,0.00014789,2]
[334473175,1723140632249,-82.0090277,0.00014789,2]
[334473176,1723140632259,-449.16373412,0.00014789,2]
[334473177,1723140632270,-343.36626588,0.00014789,2]
[334473178,1723140632280,-167.09177481,0.00015369,2]
[334473179,1723140632292,-5034.03822519,0.00015369,2]
[334473180,1723140632301,-300.0,0.00015369,2]
[334473181,1723140632311,-160.06,0.0001595,2]
[334473182,1723140632320,-256.10480481,0.000165,3]
[334473185,1723140632469,-654.89519519,0.000165,3]
[334473186,1723140632479,-232.35143299,0.000166,3]
[334473187,1723140632491,-2777.64856701,0.000166,3]
[334473188,1723140632500,-155.0,0.00017259,2]
[334473189,1723140632513,-186.30171009,0.00018,2]
[334473190,1723140632523,-308.16874741,0.00018,2]
[334473191,1723140632532,-339.21,0.00018082,2]
[334473192,1723140632541,-2740.70883,0.00018232,2]
[334473193,1723140632551,-400.83183558,0.00018911,2]
[334473194,1723140632561,-1006.0,0.00019,2]
[334473195,1723140632570,-750.0,0.00019451,2]
[334473196,1723140632579,-2245.19405522,0.00019452,2]
[334473197,1723140632590,-2027.35533,0.00019452,2]
[334473198,1723140632606,-883.54995,0.00019452,2]
[334473199,1723140632617,-846.47,0.00019452,2]
[334473200,1723140632628,-350.2299999,0.00019452,2]
[334473201,1723140632639,-5506.78820214,0.00019452,2]
[334473202,1723140632651,-301.83583572,0.00019452,2]
[334473203,1723140632662,-11935.23239639,0.00019452,2]
[334473205,1723140638087,-5200.0,0.00019452,2]
[334473206,1723140638121,-618.75914436,0.00019452,2]
[334473207,1723140638234,-907.63759725,0.00019452,2]
[334473208,1723140638245,-420.0,0.00019452,2]
[334473209,1723140638258,-6970.69548902,0.00019452,2]
[334473210,1723140638267,-270.11,0.00019924,2]
[334473211,1723140638277,-201.29,0.00019938,2]
[334473212,1723140638286,-166.24,0.00019938,2]
[334473213,1723140638295,-624.06451664,0.00019999,2]
[334473214,1723140638304,-9507.0,0.0002,7]
[334473215,1723140638314,-200.0,0.00020007,2]
[334473216,1723140638323,-346.5,0.00020028,2]
[334473217,1723140638332,-201.29,0.00020038,2]
[334473218,1723140638341,-285.13,0.00020044,2]
[334473219,1723140638351,-312.32,0.00020063,2]
[334473220,1723140638360,-250.0,0.00020104,2]
[334473221,1723140638370,-500.0,0.00020118,2]
[334473222,1723140638379,-1938.82,0.00020181,2]
[334473223,1723140638389,-223.41,0.00020187,2]
[334473224,1723140638398,-222.42,0.00020236,2]
[334473225,1723140638407,-687.68,0.00020326,2]
[334473226,1723140638416,-167.96,0.00020345,2]
[334473227,1723140638425,-339.21,0.00020346,2]
[334473228,1723140638435,-194.76,0.00020356,2]
[334473229,1723140638444,-3162.62,0.00020356,2]
[334473230,1723140638453,-200.0,0.0002037,2]
[334473231,1723140638463,-10000.0,0.00020388,2]
[334473232,1723140638472,-238.89,0.00020447,2]
[334473233,1723140638481,-179.17,0.00020447,2]
[334473234,1723140638491,-1975.9,0.00020518,2]
[334473235,1723140638500,-1274.9526564,0.00020588,2]
[334473236,1723140638512,-4793.77126207,0.00020899,2]
[334473237,1723140638522,-403.752526,0.000217,2]
[334473238,1723140638531,-1265.53362362,0.00021804,2]
[334473239,1723140638540,-156.81,0.00021901,2]
[334473240,1723140638551,-156.81,0.00021912,2]
[334473241,1723140638560,-150.0,0.00021918,2]
[334473242,1723140638569,-156.81,0.00021923,2]
[334473243,1723140638578,-156.81,0.00021934,2]
[334473244,1723140638588,-156.81,0.00021945,2]
[334473245,1723140638597,-156.81,0.00021956,2]
[334473246,1723140638607,-156.81,0.00021967,2]
[334473247,1723140638616,-156.81,0.00021978,2]
[334473248,1723140638626,-156.81,0.00021989,2]
[334473249,1723140638635,-177.7045885,0.00022,2]
[334473250,1723140638644,-156.81,0.00022,2]
[334473251,1723140638654,-156.81,0.00022011,2]
[334473252,1723140638663,-1925.0,0.00022031,2]
[334473253,1723140638672,-810.0,0.00022031,2]
[334473254,1723140638681,-685.929,0.00022031,2]
[334473255,1723140638690,-150.0,0.00022031,2]
[334473256,1723140638700,-550.0,0.00022031,2]
[334473257,1723140638709,-1894.0,0.00022031,2]
[334473258,1723140638718,-1154.0,0.00022031,2]
[334473259,1723140638727,-3289.0,0.00022031,2]
[334473260,1723140638736,-150.0,0.00022488,2]
[334473261,1723140638746,-150.0,0.00022495,2]
[334473262,1723140638756,-298.53,0.00022548,2]
[334473266,1723140638928,-312.32,0.00022571,2]
[334473267,1723140638942,-339.21,0.0002261,2]
[334473268,1723140638952,-687.68,0.00022867,2]
[334473269,1723140638961,-167.96,0.00022888,2]
[334473270,1723140638976,-328.31529104,0.00023014,2]
[334473271,1723140638985,-150.0,0.00023071,2]
[334473272,1723140638998,-834.66,0.00023096,2]
[334473273,1723140639009,-180.0,0.00023205,2]
[334473274,1723140639018,-2740.70883,0.00023232,2]
[334473275,1723140639027,-530.62,0.0002337,2]
[334473276,1723140639037,-150.0,0.0002337,2]
[334473277,1723140639051,-151.06,0.0002337,2]
[334473278,1723140639062,-426.15,0.0002337,2]
[334473279,1723140639071,-555.69,0.0002337,2]
[334473280,1723140639080,-426.15,0.0002337,2]
[334473281,1723140639090,-426.15,0.0002337,2]
[334473282,1723140639099,-216.22,0.0002337,2]
[334473283,1723140639110,-1931.37486418,0.00023555,2]
[334473284,1723140639121,-150.0,0.00023648,2]
[334473285,1723140639133,-5201.54252006,0.0002388,2]
[334473286,1723140639142,-150.0,0.00024225,2]
[334473287,1723140639151,-677.0,0.00024241,2]
[334473288,1723140639161,-280.851,0.00024391,2]
[334473289,1723140639170,-150.65729119,0.00024415,2]
[334473290,1723140639179,-1480.15468872,0.00024415,2]
[334473291,1723140639188,-193.64669932,0.00024415,2]
[334473292,1723140639198,-326.2802915,0.00024415,2]
[334473293,1723140639208,-199.14406548,0.00024415,2]
[334473294,1723140639218,-1727.7352,0.00024425,2]
[334473295,1723140639227,-442.12474651,0.00024425,2]
[334473296,1723140639236,-200.0,0.00024473,2]
[334473297,1723140639246,-200.0,0.00024473,2]
[334473298,1723140639257,-200.0,0.00024473,2]
[334473299,1723140639270,-442.12474648,0.00024478,2]
[334473300,1723140639279,-677.0,0.00024491,2]
[334473301,1723140639289,-270.84000014,0.00024497,2]
[334473302,1723140639298,-1826.7315719,0.000245,2]
[334473303,1723140639308,-72068.97460749,0.000245,9]
[334473304,1723140639317,-317.26,0.000245,2]
[334473305,1723140639327,-526781.83262749,0.000245,5]
[334473306,1723140639344,-1079.34910173,0.000245,5]
[334473307,1723140639356,-31412.83424212,0.000245,5]
[334473308,1723140639367,-12242.56452374,0.000245,5]
[334473309,1723140639378,-4261.88,0.000245,5]
[334473310,1723140639389,-424.5,0.000245,5]
[334473311,1723140639401,-13695.0,0.000245,5]
[334473315,1723140640265,-170.7,0.00021918,2]
[334473316,1723140640275,-2422.92451701,0.000245,5]
[334473317,1723140640520,-933.43431332,0.000245,5]
[334473318,1723140640533,-4442.72725068,0.000245,5]
[334473319,1723140640545,-568.54,0.000245,5]
[334473320,1723140640559,-683.4446993,0.000245,5]
[334473357,1723140641013,-5184.20181618,0.000245,5]
[334473429,1723140643136,-3563.9999998,0.000245,5]
[334473430,1723140643148,-7982.64594648,0.000245,5]
[334473431,1723140643159,-32169.23916459,0.000245,5]
[334473444,1723140643663,-1013.62851621,0.000245,5]
[334473447,1723140643674,-3090.37757266,0.000245,5]
[334473458,1723140646226,-150.8736,0.000132,2]
[334473459,1723140646238,-22326.25896297,0.000245,5]
[334473460,1723140646250,-233811.8181429,0.000245,5]
[334473461,1723140646267,-500.0,0.000245,5]
[334473462,1723140646283,-1101.17387815,0.000245,5]
[334473463,1723140646301,-3567.11591837,0.000245,5]
[334473464,1723140646332,-315.00000008,0.000245,5]
[334473465,1723140646378,-10019.09632223,0.000245,5]
[334473466,1723140646392,-6435.0822128,0.000245,5]
[334473467,1723140646407,-716.33977595,0.000245,5]
[334473468,1723140646422,-258.90026698,0.000245,5]
[334473469,1723140646437,-544.68776136,0.000245,5]
[334473470,1723140646452,-726.52366915,0.000245,5]
[334473471,1723140646467,-965.71228603,0.000245,5]
[334473472,1723140646481,-2595.742,0.000245,5]
[334473476,1723141051415,200.0,0.00027,120]
[334473492,1723141832227,-164.64,0.00013973,2]
[334473494,1723141832236,-1000.0,0.00016699,2]
[334473496,1723141832245,-2709.0,0.000167,3]
[334473498,1723141832255,-300.0,0.00019451,2]
[334473501,1723141832264,-305.52,0.00019574,2]
[334473503,1723141832273,-155.15699907,0.00020821,2]
[334473505,1723141832283,-766.78783793,0.00020831,2]
[334473507,1723141832293,-150.0,0.00020852,2]
[334473509,1723141832302,-299.99,0.00020853,7]
[334473511,1723141832311,-511.62,0.00020853,2]
[334473513,1723141832321,-499.99,0.00020853,2]
[334473515,1723141832330,-10537.295163,0.00020853,2]
[334473517,1723141832345,-19799.954837,0.00020853,2]
[334473518,1723141832354,-420.0,0.00021192,2]
[334473519,1723141832364,-1743.63,0.00021485,2]
[334473520,1723141832373,-250.0,0.00021649,2]
[334473521,1723141832383,-2662.91,0.00021656,2]
[334473522,1723141832393,-187.4,0.00021705,2]
[334473523,1723141832403,-222.42,0.00021761,2]
[334473524,1723141832416,-305.52,0.00021838,2]
[334473525,1723141832426,-270.11,0.00022147,2]
[334473526,1723141832438,-150.0,0.00022226,2]
[334473527,1723141832449,-4996.7703879,0.00022308,2]
[334473528,1723141832461,-195.46,0.00022318,2]
[334473529,1723141832472,-1075.0,0.00022318,2]
[334473530,1723141832484,-21740.0,0.00022318,2]
[334473531,1723141832494,-393.002,0.00022318,2]
[334473533,1723141832504,-5837.0,0.00022318,2]
[334473535,1723141832516,-5129.0,0.00022318,2]
[334473537,1723141832525,-1671.0,0.00022318,2]
[334473538,1723141832535,-170.7,0.0002237,2]
[334473540,1723141832544,-223.41,0.00022804,2]
[334473542,1723141832554,-812.6,0.00022814,2]
[334473544,1723141832563,-150.0,0.0002282,2]
[334473546,1723141832573,-150.0,0.00023,2]
[334473548,1723141832582,-180.0,0.00023088,2]
[334473550,1723141832591,-150.0,0.00023414,2]
[334473552,1723141832601,-200.0,0.00023499,2]
[334473553,1723141832610,-474.81817197,0.0002377,4]
[334473555,1723141832622,-977.65618882,0.0002377,4]
[334473557,1723141832631,-1123.0237,0.0002378,2]
[334473558,1723141832640,-1452.4743608,0.0002378,4]
[334473559,1723141832649,-448.13831216,0.000238,8]
[334473560,1723141832660,-51.86168784,0.000238,8]
[334473561,1723141832669,-1000.0,0.00023813,2]
[334473562,1723141832679,-180.0,0.00023818,2]
[334473563,1723141832688,-1671.38831216,0.0002387,4]
[334473564,1723141832707,-1443.6854515,0.0002387,4]
[334473565,1723141832719,-462.53216332,0.0002387,4]
[334473566,1723141832730,-11631.4198,0.0002387,4]
[334473567,1723141832742,-201582.79757302,0.0002387,4]
[334473568,1723141832751,-94081.23319274,0.0002387,4]
[334473569,1723141832764,-284.296,0.0002387,4]
[334473570,1723141832775,-10613.60781624,0.0002387,4]
[334473571,1723141832786,-1282.01565883,0.0002387,4]
[334473588,1723141838474,-481.44785511,0.00022318,2]
[334473589,1723141838487,-721.55214489,0.00022318,2]
[334473590,1723141838497,-58307.03428422,0.0002387,4]
[334473591,1723141838610,-58184.27970197,0.0002387,4]
[334473592,1723141838620,-1931.37486418,0.00023873,2]
[334473593,1723141838630,-740.83361352,0.00023873,2]
[334473594,1723141838639,-28993.64354054,0.00023877,2]
[334473595,1723141838649,-804233.93168587,0.0002388,2]
[334473604,1723141840298,-3690.39510054,0.0002388,2]
[334473605,1723141840567,-893.02419,0.0002388,2]
[334473641,1723141843363,-4201.02230066,0.0002388,2]
[334473658,1723141846657,-35280.000002,0.0002388,2]
[334473659,1723141846669,-288.26446111,0.0002388,2]
[334473672,1723142187764,177.79,0.00026244,120]
[334473676,1723142436638,151.0,0.00027,120]
[334473718,1723143031719,-179.16,0.00013973,2]
[334473719,1723143031731,-300.0,0.00014999,2]
[334473720,1723143031742,-253.49,0.00015,7]
[334473721,1723143031818,-6551.96911994,0.00015,7]
[334473725,1723143037665,-3347.23544621,0.00015,7]
[334473726,1723143037680,-9869.26978941,0.00015,7]
[334473727,1723143037691,-866.0,0.000169,3]
[334473728,1723143037702,-155.0,0.00018999,2]
[334473729,1723143037713,-487.53,0.00019726,2]
[334473730,1723143037725,-295.59,0.00020857,2]
[334473731,1723143037736,-10150.92589559,0.00020999,2]
[334473732,1723143038047,-15545.75823298,0.00020999,2]
[334473733,1723143038058,-200.0,0.00022391,2]
[334473734,1723143038069,-150.0,0.00022565,2]
[334473735,1723143038080,-170.7,0.0002259,2]
[334473736,1723143038092,-187.4,0.00022632,2]
[334473737,1723143038102,-250.0,0.00022759,2]
[334473738,1723143038114,-200.0,0.00023,2]
[334473739,1723143038125,-4004.61,0.00023084,2]
[334473740,1723143038137,-295.59,0.0002312,2]
[334473741,1723143038149,-150.0,0.00023167,2]
[334473742,1723143038160,-166.24,0.00023328,2]
[334473743,1723143038177,-177.79,0.00023328,2]
[334473744,1723143038189,-850.08,0.00023328,2]
[334473745,1723143038199,-1931.37486418,0.00023575,2]
[334473746,1723143038211,-150.0,0.0002377,2]
[334473747,1723143038222,-150.0,0.00023779,2]
[334473748,1723143038233,-785.6009,0.0002378,2]
[334473749,1723143038244,-22352.5827,0.0002378,2]
[334473750,1723143038254,-2681.9773,0.0002378,2]
[334473751,1723143038264,-1525.6402,0.0002378,2]
[334473752,1723143038274,-1000.0,0.0002378,2]
[334473753,1723143038283,-500.0,0.0002378,2]
[334473754,1723143038292,-9191.97675818,0.0002378,2]
[334473847,1723143039574,-2116.53224182,0.0002378,2]
[334473848,1723143039584,-213.2091,0.0002378,2]
[334473849,1723143039593,-5294.06161908,0.0002387,4]
[334473850,1723143039603,-231.06459181,0.00023879,2]
[334473851,1723143039685,-1347.10578871,0.00023879,2]
[334473852,1723143039696,-1130.54686907,0.00023879,2]
[334473853,1723143039708,-249.48112644,0.00023879,2]
[334473854,1723143039717,-502.49888056,0.0002388,3]
[334473855,1723143039728,-2923.62999489,0.0002388,3]
[334473856,1723143039739,-11573.87112455,0.0002388,3]
[334473857,1723143039749,-12166.95600629,0.0002388,2]
[334473858,1723143039760,-1243.68746334,0.0002388,2]
[334473859,1723143039802,-500.0,0.0002388,2]
[334473860,1723143039815,-804.68751844,0.0002388,2]
[334473863,1723143040633,-1821.68670505,0.0002388,2]
[334473864,1723143041028,-1540.84358106,0.0002388,2]
[334473865,1723143041040,-1596.3,0.0002388,2]
[334473866,1723143041051,-2048.42034092,0.0002388,2]
[334473867,1723143041063,-15060.20244085,0.0002388,2]
[334473868,1723143041074,-1289.45153415,0.0002388,2]
[334473871,1723143042592,-6679.72932,0.0002388,2]
[334473872,1723143042680,-1516.6,0.0002388,2]
[334473873,1723143042692,-257.36530057,0.0002388,2]
[334473874,1723143042703,-7764.0017081,0.0002388,2]
[334473875,1723143042714,-38710.46975587,0.0002388,2]
[334473878,1723143042771,-403.80498683,0.0002388,2]
[334473885,1723143043485,-1661.60734328,0.0002388,2]
[334473886,1723143043497,-657.15745888,0.0002388,2]
[334473887,1723143043508,-661.3131406,0.0002388,2]
[334473888,1723143043519,-893.26405591,0.0002388,2]
[334473889,1723143043531,-1000.0,0.0002388,2]
[334473918,1723143045725,-1860.25869673,0.0002388,2]
[334473928,1723143045813,-658.66336128,0.0002388,2]
[334473930,1723143045826,-4417.52516995,0.0002388,2]
[334473932,1723143045915,-396.35,0.0002388,2]
[334473933,1723143046003,-420.05203011,0.0002388,2]
[334473934,1723143046015,-10401.00682633,0.0002388,2]
[334473935,1723143046027,-1529.47956354,0.0002388,2]
[334473936,1723143046095,-1417.56443875,0.0002388,2]
[334474024,1723144232765,-161.25,0.00013973,2]
[334474026,1723144232775,-164.64,0.00013973,2]
[334474028,1723144232785,-450.72022031,0.00015,7]
[334474030,1723144232796,-931.590165,0.00015,7]
[334474032,1723144232869,-469.02406266,0.00015,7]
[334474033,1723144232881,-415.22091175,0.00015,7]
[334474034,1723144232963,-10081.22906735,0.00015,7]
[334474035,1723144232975,-4591.446,0.00015,7]
[334474044,1723144237875,-866.05367965,0.00015,7]
[334474045,1723144238279,-2216.68024884,0.00015,7]
[334474046,1723144238290,-301.94,0.00020388,2]
[334474047,1723144238301,-161.25,0.00020447,2]
[334474048,1723144238314,-250.0,0.00022183,2]
[334474049,1723144238325,-231.57,0.0002241,2]
[334474050,1723144238336,-27.63101291,0.00022429,2]
[334474271,1723144240542,-431.68941472,0.00022429,2]
[334474273,1723144240556,-540.67957237,0.00022429,2]
[334474274,1723144240566,-177.79,0.00022483,2]
[334474275,1723144240577,-150.0,0.00022494,2]
[334474278,1723144240587,-170.7,0.00022546,2]
[334474279,1723144240598,-150.0,0.00022561,2]
[334474281,1723144240608,-4521.51599959,0.00022562,2]
[334474282,1723144240989,-5782.29098957,0.00022562,2]
[334474283,1723144241003,-16379.54301084,0.00022562,2]
[334474284,1723144241014,-1280.93,0.00022562,2]
[334474285,1723144241026,-301.94,0.00022652,2]
[334474286,1723144241036,-200.0,0.00023,2]
[334474287,1723144241047,-1583.0,0.00023018,2]
[334474288,1723144241058,-592.103,0.00023018,2]
[334474289,1723144241069,-622.0,0.00023018,2]
[334474290,1723144241079,-1256.0,0.00023018,2]
[334474291,1723144241090,-446.0,0.00023018,2]
[334474292,1723144241100,-843.151,0.00023018,2]
[334474293,1723144241111,-555.0,0.00023018,2]
[334474294,1723144241121,-150.0,0.00023018,2]
[334474295,1723144241131,-150.0,0.00023018,2]
[334474296,1723144241142,-1139.0,0.00023018,2]
[334474297,1723144241152,-1554.952,0.00023018,2]
[334474298,1723144241163,-5131.0,0.00023018,2]
[334474299,1723144241174,-1671.0,0.00023018,2]
[334474300,1723144241185,-1204.0,0.00023018,2]
[334474301,1723144241200,-21745.0,0.00023018,2]
[334474302,1723144241210,-1075.0,0.00023018,2]
[334474303,1723144241221,-157.85,0.00023085,2]
[334474304,1723144241231,-150.0,0.00023095,2]
[334474305,1723144241242,-356.25,0.0002337,2]
[334474306,1723144241252,-238.42,0.0002337,2]
[334474307,1723144241264,-17131.12275238,0.00023451,2]
[334474308,1723144241275,-150.0,0.00023696,2]
[334474309,1723144241286,-1000.0,0.000237,12]
[334474310,1723144241297,-3360.0806,0.0002378,2]
[334474311,1723144241307,-1289.7013,0.0002378,2]
[334474312,1723144241318,-788.7556,0.0002378,2]
[334474313,1723144241328,-69560.7054,0.0002378,2]
[334474314,1723144241339,-7500.0,0.0002378,2]
[334474315,1723144241350,-309.33600731,0.0002378,2]
[334474316,1723144241361,-1000.0,0.000238,12]
[334474317,1723144241372,-40406.2613933,0.0002387,4]
[334474318,1723144241383,-200.0,0.00023873,2]
[334474319,1723144241393,-200.0,0.00023873,2]
[334474320,1723144241404,-200.0,0.00023873,2]
[334474321,1723144241415,-129098.98818736,0.0002388,2]
[334474322,1723144241426,-170.42026434,0.0002388,2]
[334474323,1723144241436,-871.98206993,0.0002388,2]
[334474324,1723144241448,-340.85993505,0.0002388,7]
[334474325,1723144241459,-201.41565925,0.0002388,2]
[334474326,1723144241470,-1099.59789758,0.0002388,2]
[334474327,1723144241480,-22088.29041172,0.0002388,2]
[334474328,1723144241491,-20386.76664301,0.0002388,2]
[334474329,1723144241501,-14355.965448,0.0002388,2]
[334474330,1723144241511,-56904.27310829,0.0002388,7]
[334474331,1723144241522,-181.77327413,0.0002388,2]
[334474332,1723144241532,-90504.19498141,0.0002388,2]
[334474337,1723144242840,-212.87393371,0.00023,2]
[334474338,1723144242852,-92.80488361,0.0002388,2]
[334474339,1723144242866,-3265.01060924,0.0002388,2]
[334474340,1723144242919,-2165.68177957,0.0002388,2]
[334474341,1723144242933,-754.9399989,0.0002388,2]
[334474342,1723144242944,-10992.66936184,0.0002388,2]
[334474343,1723144242956,-697.23822464,0.0002388,2]
[334474380,1723144243777,-521.31163644,0.0002388,2]
[334474381,1723144243789,-507.71561651,0.0002388,2]
[334474382,1723144243801,-2934.77971038,0.0002388,2]
[334474383,1723144243812,-675.025,0.0002388,2]
[334474384,1723144243823,-1082.91734936,0.0002388,2]
[334474385,1723144243839,-4153.92282404,0.0002388,2]
[334474406,1723144246058,-310.75725806,0.00020999,2]
[334474407,1723144246072,-907.5,0.00020999,2]
[334474408,1723144246083,-2427.55502287,0.00020999,2]
[334474409,1723144246096,-1006.8,0.00020999,2]
[334474410,1723144246107,-12478.51047145,0.00020999,2]
[334474411,1723144246117,-65299.59309242,0.0002388,2]
[334474412,1723144246126,-196.71089893,0.0002388,2]
[334474413,1723144246136,-449.41821093,0.0002388,2]
[334474414,1723144246146,-537.40367405,0.0002388,2]
[334474415,1723144246155,-7573.35383779,0.0002388,2]
[334474416,1723144246164,-227.65723628,0.0002388,2]
[334474417,1723144246174,-158.92239483,0.0002388,2]
[334474418,1723144246184,-155.0,0.0002388,2]
[334474419,1723144246196,-2331.39853397,0.0002388,2]
[334474420,1723144246212,-790.61891375,0.0002388,2]
[334474421,1723144246222,-1267.96294288,0.0002388,2]
[334474422,1723144246234,-155.0,0.0002388,2]
[334474423,1723144246243,-485.35658426,0.0002388,2]
[334474424,1723144246252,-151.0,0.0002388,7]
[334474425,1723144246265,-151.0,0.0002388,7]
[334474426,1723144246275,-151.0,0.0002388,7]
[334474427,1723144246284,-151.0,0.0002388,7]
[334474428,1723144246295,-425.65743734,0.0002388,2]
[334474429,1723144246304,-363.80792903,0.0002388,2]
[334474430,1723144246314,-1624.01883,0.0002388,2]
[334474431,1723144246323,-1284.55129819,0.0002388,2]
[334474432,1723144246333,-262.01031941,0.0002388,2]
[334474433,1723144246343,-200.0,0.0002388,2]
[334474434,1723144246352,-151.0,0.0002388,7]
[334474435,1723144246362,-200.100923,0.0002388,7]
[334474436,1723144246371,-151.0,0.0002388,7]
[334474437,1723144246381,-692.80235,0.0002388,2]
[334474438,1723144246391,-291.42187984,0.0002388,2]
[334474439,1723144246400,-1223.05007541,0.0002388,2]
[334474440,1723144246410,-1309.79366313,0.0002388,2]
[334474441,1723144246419,-800.0,0.000239,8]
[334474442,1723144246428,-153.68776239,0.00023955,2]